fUSD/lending_fUSD_20260420
["ID","MTS","AMOUNT","RATE_DAILY","PERIOD"]
[420839810,1776614401986,6896.49291191,9.95e-05,2]
[420839811,1776614402009,8402.29165609,9.95e-05,2]
[420839812,1776614402239,300.0,9.999e-05,2]
[420839813,1776614404080,150.0,9.676e-05,2]
[420839814,1776614404897,150.0,9.976e-05,2]
[420839815,1776614405233,167.18,0.00032849,120]
[420839816,1776614423532,4416.58,0.0003,120]
[420839817,1776614449328,575.12670308,9.999e-05,2]
[420839818,1776614449370,422.59164083,9.999e-05,2]
[420839819,1776614449404,77.40835917,9.999e-05,2]
[420839820,1776614449484,358.6297748,9.999e-05,2]
[420839821,1776614449531,179.32025899,9.999e-05,2]
[420839822,1776614453949,1905.25361866,0.0002,120]
[420839823,1776614456912,3220.6525,9.9e-05,2]
[420839824,1776614461577,300.0,9.999e-05,2]
[420839829,1776614494287,150.0,0.00031234,120]
[420839830,1776614494601,183.498,9.8e-05,2]
[420839831,1776614494630,3197.046,9.8e-05,2]
[420839835,1776614584851,300.0,9.999e-05,2]
[420839836,1776614584953,150.0,9.999e-05,2]
[420839837,1776614626455,260.0,9.863e-05,2]
[420839838,1776614639057,853.21,0.0003269,120]
[420839839,1776614641191,300.0,9.999e-05,2]
[420839840,1776614666789,500.0,0.00032877,120]
[420839841,1776614692444,260.0,9.863e-05,2]
[420839842,1776614705684,254.0,9.999e-05,2]
[420839843,1776614705732,300.0,9.999e-05,2]
[420839844,1776614736532,251.798,0.00032876,120]
[420839846,1776614744977,500.0,0.00032192,120]
[420839847,1776614765541,601.04084236,9.999e-05,2]
[420839848,1776614791792,402.58869215,9.999e-05,2]
[420839849,1776614821545,-4740.01,0.0001,2]
[420839850,1776614821595,300.0,9.999e-05,2]
[420839851,1776614821617,-5000.01,0.0001,2]
[420839852,1776614821631,-5000.01,0.0001,2]
[420839853,1776614821645,-5000.01,0.0001,2]
[420839854,1776614821672,-5000.01,0.0001,2]
[420839855,1776614821754,-5000.01,0.0001,2]
[420839856,1776614821873,-5000.01,0.0001,2]
[420839857,1776614821984,-5000.01,0.0001,2]
[420839858,1776614822105,-5000.01,0.0001,2]
[420839859,1776614822225,-5000.01,0.0001,2]
[420839860,1776614881480,300.0,9.999e-05,2]
[420839861,1776614913339,150.0,0.00028339,120]
[420839862,1776614913998,500.0,9.999e-05,2]
[420839863,1776614914030,457.3466933,9.999e-05,2]
[420839864,1776614914061,217.29227619,9.999e-05,2]
[420839865,1776614933409,10000.0,0.00032877,120]
[420839866,1776614941859,150.0,9.999e-05,2]
[420839867,1776614943964,10000.0,0.00032877,120]
[420839868,1776614954430,500.0,9.999e-05,2]
[420839869,1776614954894,10000.0,0.00032877,120]
[420839870,1776614954944,500.0,9.999e-05,2]
[420839871,1776614955076,500.0,9.999e-05,2]
[420839872,1776614960672,500.0,9.999e-05,2]
[420839873,1776614972324,1889.78,0.00032877,120]
[420839874,1776614973139,-5432.29348813,0.0001,2]
[420839875,1776615001125,1200.0,9.999e-05,2]
[420839876,1776615032312,-571.42461261,0.0001,2]
[420839877,1776615032365,-120731.00490757,0.0001,2]
[420839878,1776615032377,-353.32,0.0001,2]
[420839879,1776615032475,-290.05642929,0.0001,2]
[420839880,1776615032487,-2187.89052827,0.0001,2]
[420839881,1776615032528,-4958.97605547,0.0001,2]
[420839900,1776615038686,-150764.47632771,0.0001,2]
[420839901,1776615038739,-557.87133531,0.0001,2]
[420839902,1776615038752,-68923.7894694,0.0001,2]
[420839935,1776615043881,-1286.26560742,0.0001,2]
[420839939,1776615044277,-434.753083,0.0001,2]
[420839940,1776615044289,-18004.30339164,0.0001,2]
[420839948,1776615046430,-15395.0,0.0001,2]
[420839949,1776615046486,-509258.83719632,0.0001,2]
[420839950,1776615046496,-151.0,0.0001,2]
[420839951,1776615046506,-271.60144277,0.0001,2]
[420839952,1776615046516,-171.67995488,0.0001,2]
[420839953,1776615046526,-279.0,0.0001,2]
[420839954,1776615046537,-250.0,0.00010092,2]
[420839955,1776615046547,-191.28,0.00010368,2]
[420839956,1776615046557,-235.29,0.00010461,2]
[420839957,1776615046566,-3791.85,0.00010474,2]
[420839958,1776615046576,-1779.91,0.00010474,2]
[420839959,1776615046588,-522.84,0.00010537,2]
[420839960,1776615046598,-2842.32,0.00010567,2]
[420839961,1776615046608,-160.60039587,0.00010588,2]
[420839962,1776615046617,-1600.0,0.00010682,2]
[420839963,1776615046627,-609.98,0.00010766,2]
[420839964,1776615046638,-5287.1,0.00010935,2]
[420839965,1776615046648,-195.0,0.00010999,2]
[420839966,1776615046658,-195.0,0.00010999,2]
[420839967,1776615046667,-195.0,0.00010999,2]
[420839968,1776615046677,-195.0,0.00010999,2]
[420839969,1776615046687,-250.0,0.00011,2]
[420839970,1776615046697,-600.0,0.00011,2]
[420839971,1776615046707,-600.0,0.00011,2]
[420839972,1776615046716,-600.0,0.00011,2]
[420839973,1776615046726,-600.0,0.00011,2]
[420839974,1776615046736,-600.0,0.00011,2]
[420839975,1776615046746,-3240.0,0.00011079,2]
[420839976,1776615046756,-20018.94150177,0.00011099,2]
[420839977,1776615046766,-757.0,0.00011233,5]
[420839978,1776615046780,-549.29,0.0001124,2]
[420839979,1776615046790,-252.71,0.0001124,2]
[420839980,1776615046800,-1000.0,0.00011404,2]
[420839981,1776615046811,-1293.69,0.00011507,2]
[420839982,1776615046821,-1000.0,0.00011706,2]
[420839983,1776615046831,-1000.0,0.00011733,2]
[420839984,1776615046841,-196.8,0.00011733,2]
[420839985,1776615046851,-196.8,0.00011733,2]
[420839986,1776615046861,-196.8,0.00011733,2]
[420839987,1776615046871,-196.8,0.00011733,2]
[420839988,1776615046880,-196.8,0.00011733,2]
[420839989,1776615046890,-196.8,0.00011733,2]
[420839990,1776615046900,-196.8,0.00011733,2]
[420839991,1776615046910,-196.8,0.00011733,2]
[420839992,1776615046921,-196.8,0.00011733,2]
[420839993,1776615046930,-1000.0,0.00011734,2]
[420839994,1776615046941,-150.0,0.00011758,2]
[420839995,1776615046950,-150.0,0.00011776,2]
[420839996,1776615046960,-1000.0,0.00011783,2]
[420839997,1776615046970,-500.0,0.00011783,2]
[420839998,1776615046979,-157.4443109,0.00011787,2]
[420839999,1776615046989,-300.0,0.00011819,2]
[420840000,1776615046999,-150.0,0.0001182,2]
[420840001,1776615047009,-1000.0,0.00011823,2]
[420840002,1776615047018,-1000.0,0.0001183,2]
[420840003,1776615047028,-150.0,0.00011834,2]
[420840005,1776615047038,-150.0,0.00011865,2]
[420840006,1776615047048,-150.0,0.00011891,2]
[420840007,1776615047057,-249.69658476,0.000119,2]
[420840008,1776615047067,-151.7777588,0.00011902,2]
[420840009,1776615047076,-1000.0,0.00011932,2]
[420840010,1776615047086,-250.0,0.00011945,2]
[420840011,1776615047095,-250.0,0.00011945,2]
[420840012,1776615047105,-250.0,0.00011945,2]
[420840013,1776615047114,-250.0,0.00011945,2]
[420840014,1776615047124,-199.88117737,0.00011973,2]
[420840015,1776615047133,-499015.96589114,0.00012,2]
[420840016,1776615047146,-14732.99843482,0.00012,2]
[420840017,1776615047815,-290.51231733,0.00012,2]
[420840018,1776615047834,-5579.08913418,0.00012,2]
[420840019,1776615047847,-644.6416,0.00012,2]
[420840020,1776615049643,260.0,9.863e-05,2]
[420840021,1776615125326,420.72858965,9.999e-05,2]
[420840022,1776615138479,500.0,9.999e-05,2]
[420840023,1776615138525,500.0,9.999e-05,2]
[420840024,1776615138577,500.0,9.999e-05,2]
[420840025,1776615138610,500.0,9.999e-05,2]
[420840026,1776615138652,500.0,9.999e-05,2]
[420840027,1776615138686,500.0,9.999e-05,2]
[420840028,1776615138720,500.0,9.999e-05,2]
[420840029,1776615138754,500.0,9.999e-05,2]
[420840030,1776615138787,500.0,9.999e-05,2]
[420840031,1776615138820,500.0,9.999e-05,2]
[420840032,1776615138852,500.0,9.999e-05,2]
[420840033,1776615138885,500.0,9.999e-05,2]
[420840034,1776615138941,500.0,9.999e-05,2]
[420840035,1776615138989,500.0,9.999e-05,2]
[420840036,1776615139104,500.0,9.999e-05,2]
[420840037,1776615139147,500.0,9.999e-05,2]
[420840038,1776615139184,500.0,9.999e-05,2]
[420840039,1776615139232,500.0,9.999e-05,2]
[420840040,1776615139265,319.28141035,9.999e-05,2]
[420840041,1776615139291,180.71858965,9.999e-05,2]
[420840042,1776615139328,500.0,9.999e-05,2]
[420840043,1776615139361,500.0,9.999e-05,2]
[420840044,1776615139423,521.09715485,9.999e-05,2]
[420840045,1776615139468,500.0,9.999e-05,2]
[420840046,1776615139503,500.0,9.999e-05,2]
[420840047,1776615139541,500.0,9.999e-05,2]
[420840048,1776615139576,500.0,9.999e-05,2]
[420840049,1776615139609,500.0,9.999e-05,2]
[420840050,1776615139678,500.0,9.999e-05,2]
[420840051,1776615139735,500.0,9.999e-05,2]
[420840052,1776615139857,500.0,9.999e-05,2]
[420840053,1776615139962,500.0,9.999e-05,2]
[420840054,1776615140080,500.0,9.999e-05,2]
[420840055,1776615140815,500.0,9.999e-05,2]
[420840056,1776615140864,500.0,9.999e-05,2]
[420840057,1776615140910,500.0,9.999e-05,2]
[420840058,1776615140944,500.0,9.999e-05,2]
[420840059,1776615140978,500.0,9.999e-05,2]
[420840060,1776615141011,500.0,9.999e-05,2]
[420840061,1776615141053,298.1942555,9.999e-05,2]
[420840062,1776615141080,201.8057445,9.999e-05,2]
[420840063,1776615141113,500.0,9.999e-05,2]
[420840064,1776615141153,500.0,9.999e-05,2]
[420840065,1776615141194,500.0,9.999e-05,2]
[420840066,1776615141248,500.0,9.999e-05,2]
[420840067,1776615141282,500.0,9.999e-05,2]
[420840068,1776615141345,500.0,9.999e-05,2]
[420840069,1776615141405,500.0,9.999e-05,2]
[420840070,1776615141488,500.0,9.999e-05,2]
[420840071,1776615141541,500.0,9.999e-05,2]
[420840072,1776615141575,500.0,9.999e-05,2]
[420840073,1776615141608,500.0,9.999e-05,2]
[420840074,1776615141646,500.0,9.999e-05,2]
[420840075,1776615141698,500.0,9.999e-05,2]
[420840076,1776615141783,500.0,9.999e-05,2]
[420840077,1776615141860,500.0,9.999e-05,2]
[420840078,1776615141955,500.0,9.999e-05,2]
[420840079,1776615141989,500.0,9.999e-05,2]
[420840080,1776615153663,500.0,9.999e-05,2]
[420840081,1776615153729,500.0,9.999e-05,2]
[420840082,1776615153775,298.2042555,9.999e-05,2]
[420840083,1776615153805,201.7957445,9.999e-05,2]
[420840084,1776615153884,500.0,9.999e-05,2]
[420840085,1776615153936,500.0,9.999e-05,2]
[420840086,1776615153981,500.0,9.999e-05,2]
[420840087,1776615154030,500.0,9.999e-05,2]
[420840088,1776615154113,500.0,9.999e-05,2]
[420840089,1776615154153,500.0,9.999e-05,2]
[420840090,1776615154198,500.0,9.999e-05,2]
[420840091,1776615154233,500.0,9.999e-05,2]
[420840092,1776615154333,500.0,9.999e-05,2]
[420840093,1776615154435,500.0,9.999e-05,2]
[420840094,1776615154471,500.0,9.999e-05,2]
[420840095,1776615154526,500.0,9.999e-05,2]
[420840096,1776615154580,500.0,9.999e-05,2]
[420840097,1776615154636,500.0,9.999e-05,2]
[420840098,1776615154699,500.0,9.999e-05,2]
[420840099,1776615154734,500.0,9.999e-05,2]
[420840100,1776615154773,500.0,9.999e-05,2]
[420840101,1776615154807,500.0,9.999e-05,2]
[420840102,1776615154843,500.0,9.999e-05,2]
[420840103,1776615206694,151.0,0.00032877,120]
[420840104,1776615220893,151.0,0.00032877,120]
[420840105,1776615246299,151.0,0.00032877,120]
[420840106,1776615247150,159.23,8.951e-05,2]
[420840107,1776615258534,151.0,0.00032877,120]
[420840108,1776615267477,151.0,0.00032877,120]
[420840109,1776615275224,151.0,0.00032877,120]
[420840110,1776615284035,151.0,0.00032877,120]
[420840111,1776615293875,151.0,0.00032877,120]
[420840112,1776615301229,151.0,0.00032877,120]
[420840113,1776615310797,151.0,0.00032877,120]
[420840114,1776615319947,151.0,0.00032877,120]
[420840115,1776615329275,151.0,0.00032877,120]
[420840116,1776615336638,151.0,0.00032877,120]
[420840117,1776615347260,151.0,0.00032877,120]
[420840118,1776615357446,151.0,0.00032877,120]
[420840119,1776615365579,151.0,0.00032877,120]
[420840120,1776615374021,151.0,0.00032877,120]
[420840121,1776615384088,151.0,0.00032877,120]
[420840122,1776615393470,151.0,0.00032877,120]
[420840123,1776615429627,260.0,9.863e-05,2]
[420840124,1776615436785,151.0,0.00032877,120]
[420840125,1776615449097,151.0,0.00032877,120]
[420840126,1776615457918,151.0,0.00032877,120]
[420840127,1776615466214,151.0,0.00032877,120]
[420840128,1776615474803,151.0,0.00032877,120]
[420840129,1776615482431,151.0,0.00032877,120]
[420840130,1776615490619,151.0,0.00032877,120]
[420840131,1776615499723,151.0,0.00032877,120]
[420840132,1776615507528,151.0,0.00032877,120]
[420840133,1776615516579,151.0,0.00032877,120]
[420840134,1776615544325,151.0,0.00032877,120]
[420840135,1776615552736,151.0,0.00032877,120]
[420840136,1776615560745,151.0,0.00032877,120]
[420840137,1776615569330,151.0,0.00032877,120]
[420840138,1776615602734,151.0,0.00032877,120]
[420840139,1776615610402,151.0,0.00032877,120]
[420840140,1776615617320,151.0,0.00032877,120]
[420840141,1776615624011,151.0,0.00032877,120]
[420840142,1776615631705,151.0,0.00032877,120]
[420840143,1776615643064,151.0,0.00032877,120]
[420840144,1776615651748,151.0,0.00032877,120]
[420840145,1776615661146,151.0,0.00032877,120]
[420840146,1776615669276,151.0,0.00032877,120]
[420840147,1776615672781,260.0,9.863e-05,2]
[420840148,1776615675710,151.0,0.00032877,120]
[420840149,1776615683974,151.0,0.00032877,120]
[420840150,1776615690923,150.0,0.00031432,120]
[420840151,1776615695765,151.0,0.00032877,120]
[420840152,1776615702383,151.0,0.00032877,120]
[420840153,1776615707780,151.0,0.00032877,120]
[420840154,1776615717040,151.0,0.00032877,120]
[420840155,1776615728116,151.0,0.00032877,120]
[420840156,1776615765017,151.0,0.00032877,120]
[420840157,1776615785111,1303.98637198,0.00032877,120]
[420840158,1776615805478,151.0,0.00032877,120]
[420840159,1776615813768,151.0,0.00032877,120]
[420840160,1776615823265,151.0,0.00032877,120]
[420840161,1776615830499,151.0,0.00032877,120]
[420840162,1776615838997,151.0,0.00032877,120]
[420840163,1776615840390,260.0,9.863e-05,2]
[420840164,1776615847495,151.0,0.00032877,120]
[420840165,1776615854676,151.0,0.00032877,120]
[420840166,1776615866652,1000.0,0.00032877,120]
[420840167,1776615882559,151.0,0.00032877,120]
[420840168,1776615889593,151.0,0.00032877,120]
[420840169,1776615897150,151.0,0.00032877,120]
[420840170,1776615906620,151.0,0.00032877,120]
[420840171,1776615915748,151.0,0.00032877,120]
[420840172,1776615922425,151.0,0.00032877,120]
[420840173,1776615931289,151.0,0.00032877,120]
[420840174,1776615942073,151.0,0.00032877,120]
[420840175,1776615949401,151.0,0.00032877,120]
[420840176,1776615957008,151.0,0.00032877,120]
[420840177,1776615968096,151.0,0.00032877,120]
[420840178,1776615981347,151.0,0.00032877,120]
[420840179,1776615990673,151.0,0.00032877,120]
[420840180,1776616008334,151.0,0.00032877,120]
[420840181,1776616019009,151.0,0.00032877,120]
[420840182,1776616027181,151.0,0.00032877,120]
[420840183,1776616035381,151.0,0.00032877,120]
[420840184,1776616043703,151.0,0.00032877,120]
[420840185,1776616051836,151.0,0.00032877,120]
[420840186,1776616061332,151.0,0.00032877,120]
[420840187,1776616069112,151.0,0.00032877,120]
[420840188,1776616077157,151.0,0.00032877,120]
[420840189,1776616087089,151.0,0.00032877,120]
[420840190,1776616204369,167.19,0.00032849,120]
[420840191,1776616217675,260.0,9.863e-05,2]
[420840202,1776616232834,-216.0,0.00010252,2]
[420840203,1776616232844,-695.72705474,0.00010252,2]
[420840204,1776616232859,-1051.54508863,0.00010252,2]
[420840205,1776616232976,-3252.72785663,0.00010252,2]
[420840206,1776616232985,-202.69412254,0.00010252,2]
[420840207,1776616232995,-1804.425907,0.00010252,2]
[420840208,1776616233004,-5000.0,0.00010333,2]
[420840209,1776616233015,-4920.6375212,0.00010333,2]
[420840210,1776616233026,-300.0,0.00010356,2]
[420840211,1776616233036,-86478.65504786,0.00010357,2]
[420840212,1776616233046,-30888.91,0.00010449,2]
[420840213,1776616233055,-151.94,0.00010568,2]
[420840214,1776616233065,-180.52766364,0.00010603,2]
[420840215,1776616233075,-500.0,0.00010705,2]
[420840216,1776616233085,-150.0,0.00010759,2]
[420840217,1776616233100,-2557.637,0.00010973,2]
[420840218,1776616233110,-183.498,0.00010973,2]
[420840219,1776616233120,-801.92539945,0.00011089,2]
[420840220,1776616233129,-1010.15,0.00011194,2]
[420840221,1776616233140,-500.0,0.000112,2]
[420840222,1776616233150,-150.0,0.00011237,2]
[420840223,1776616233159,-578.20924308,0.00011247,2]
[420840224,1776616233169,-500.0,0.00011247,2]
[420840225,1776616233179,-8882.6885148,0.00011247,2]
[420840226,1776616233189,-181.0801015,0.00011247,2]
[420840227,1776616233199,-219.23011724,0.00011247,2]
[420840228,1776616233209,-227.34163157,0.00011247,2]
[420840229,1776616233219,-235.75327194,0.00011247,2]
[420840230,1776616233229,-244.476143,0.00011247,2]
[420840231,1776616233238,-253.52176029,0.00011247,2]
[420840232,1776616233248,-262.90206542,0.00011247,2]
[420840233,1776616233258,-272.62944185,0.00011247,2]
[420840234,1776616233268,-282.71673119,0.00011247,2]
[420840235,1776616233278,-381.42883746,0.00011247,2]
[420840236,1776616233287,-621.78829551,0.00011247,2]
[420840237,1776616233297,-5000.0,0.00011277,2]
[420840238,1776616233307,-250.0,0.00011277,2]
[420840239,1776616233317,-300.0,0.00011277,2]
[420840240,1776616233327,-500.0,0.00011302,2]
[420840241,1776616233338,-9211.34798985,0.00011302,2]
[420840242,1776616233348,-18315.76735153,0.00011312,2]
[420840243,1776616233357,-600.0,0.00011334,2]
[420840244,1776616233367,-600.0,0.00011334,2]
[420840245,1776616233378,-600.0,0.00011334,2]
[420840246,1776616233387,-600.0,0.00011334,2]
[420840247,1776616233397,-600.0,0.00011334,2]
[420840248,1776616233407,-500.0,0.00011357,2]
[420840249,1776616233417,-9552.16786547,0.00011357,2]
[420840250,1776616233427,-9575.09,0.00011373,2]
[420840251,1776616233437,-500.0,0.00011412,2]
[420840252,1776616233447,-9905.5980765,0.00011412,2]
[420840253,1776616233457,-2500.0,0.0001145,2]
[420840254,1776616233467,-2500.0,0.0001145,2]
[420840255,1776616233477,-2500.0,0.0001145,2]
[420840256,1776616233491,-2500.0,0.0001145,2]
[420840257,1776616233501,-2623.60124692,0.0001145,2]
[420840258,1776616233511,-10272.10520533,0.00011467,2]
[420840259,1776616233521,-150.03,0.00011508,2]
[420840260,1776616233531,-500.0,0.00011508,2]
[420840261,1776616233541,-10652.17309792,0.00011522,2]
[420840262,1776616233551,-11046.30350255,0.00011577,2]
[420840263,1776616233562,-11455.01673214,0.00011632,2]
[420840264,1776616233572,-11878.85235123,0.00011687,2]
[420840265,1776616233582,-200.0,0.000117,4]
[420840266,1776616233593,-12318.36988823,0.00011742,2]
[420840267,1776616233603,-656.23999401,0.00011748,2]
[420840268,1776616233613,-690.9313177,0.00011779,2]
[420840269,1776616233623,-150.03,0.00011782,2]
[420840270,1776616233633,-500.0,0.00011782,2]
[420840271,1776616233643,-646.65982734,0.00011793,2]
[420840272,1776616233653,-200.0,0.00011793,2]
[420840273,1776616233663,-1280.88388878,0.00011793,2]
[420840274,1776616233673,-1000.0,0.00011793,2]
[420840275,1776616233683,-1000.0,0.00011793,2]
[420840276,1776616233692,-1000.0,0.00011793,2]
[420840277,1776616233702,-1000.0,0.00011793,2]
[420840278,1776616233712,-1000.0,0.00011793,2]
[420840279,1776616233722,-230.44659801,0.00011793,2]
[420840280,1776616233732,-1000.0,0.00011793,2]
[420840281,1776616233743,-1000.0,0.00011793,2]
[420840282,1776616233752,-1000.0,0.00011793,2]
[420840283,1776616233762,-1000.0,0.00011793,2]
[420840284,1776616233772,-1000.0,0.00011793,2]
[420840285,1776616233781,-1000.0,0.00011793,2]
[420840286,1776616233791,-1000.0,0.00011793,2]
[420840287,1776616233801,-1000.0,0.00011793,2]
[420840288,1776616233811,-12774.14957409,0.00011797,2]
[420840289,1776616233820,-294.51001276,0.00011799,2]
[420840290,1776616233832,-221.15177978,0.00011799,2]
[420840291,1776616233843,-281.81208451,0.00011799,2]
[420840292,1776616233852,-2358.73535123,0.000118,2]
[420840293,1776616233956,-3175.33773602,0.000118,2]
[420840294,1776616234028,848.94493717,0.0003283,120]
[420840305,1776616237944,-640.14698549,0.00011452,2]
[420840306,1776616238003,-118.25301451,0.00011452,2]
[420840307,1776616238013,-5635.21787612,0.000118,2]
[420840308,1776616238128,-6232.98184371,0.000118,2]
[420840309,1776616238178,-741.54098972,0.000118,2]
[420840310,1776616238257,-15519.33153649,0.000118,2]
[420840317,1776616240084,-1016.22273786,0.000118,2]
[420840335,1776616244226,-14376.75094797,0.000118,2]
[420840336,1776616244244,-617.81848648,0.000118,2]
[420840337,1776616244259,-356.75629422,0.000118,2]
[420840338,1776616244285,-110.87079052,0.000118,2]
[420840340,1776616245787,-555.48318851,0.000118,2]
[420840341,1776616245802,-547.44,0.000118,2]
[420840342,1776616245819,-910069.22092115,0.000118,2]
[420840343,1776616245828,-500.0,0.000118,4]
[420840344,1776616245838,-13246.79310833,0.00011852,2]
[420840345,1776616245849,-362.79534307,0.00011896,2]
[420840346,1776616245858,-941.7113,0.000119,2]
[420840347,1776616245869,-339904.47321444,0.000119,2]
[420840348,1776616245881,-10351.79123275,0.000119,2]
[420840349,1776616245900,-553.4858,0.000119,2]
[420840350,1776616246106,-1338.77615771,0.000119,2]
[420840354,1776616246928,-378.31360839,0.000119,2]
[420840355,1776616315973,5000.0,0.0003287,120]
[420840356,1776616328864,151.0,0.00032877,120]
[420840357,1776616335612,151.0,0.00032877,120]
[420840358,1776616336482,5000.0,0.0003287,120]
[420840359,1776616342773,151.0,0.00032877,120]
[420840360,1776616349586,151.0,0.00032877,120]
[420840361,1776616352919,5000.0,0.0003287,120]
[420840362,1776616359750,151.0,0.00032877,120]
[420840363,1776616366448,151.0,0.00032877,120]
[420840364,1776616369075,5000.0,0.0003287,120]
[420840365,1776616373731,151.0,0.00032877,120]
[420840366,1776616379893,151.0,0.00032877,120]
[420840385,1776616385841,5000.0,0.0003287,120]
[420840386,1776616386401,151.0,0.00032877,120]
[420840387,1776616395219,151.0,0.00032877,120]
[420840388,1776616402406,151.0,0.00032877,120]
[420840389,1776616414276,5020.0,0.0003287,120]
[420840390,1776616420555,-173.0,0.00011411,2]
[420840391,1776616420599,-500.0,0.00011411,2]
[420840392,1776616420638,-402.10971549,0.00011411,2]
[420840393,1776616420676,-500.0,0.00011411,2]
[420840394,1776616420716,-500.0,0.00011411,2]
[420840395,1776616420758,-500.0,0.00011411,2]
[420840396,1776616420800,-500.0,0.00011411,2]
[420840397,1776616420839,-500.0,0.00011411,2]
[420840398,1776616422129,-614.69245535,0.000117,2]
[420840399,1776616423418,-4385.30754465,0.000117,2]
[420840400,1776616423462,-1229.3949107,0.000119,2]
[420840401,1776616426983,-10000.01,0.000119,2]
[420840402,1776616428790,151.0,0.00032877,120]
[420840403,1776616435866,151.0,0.00032877,120]
[420840404,1776616442931,151.0,0.00032877,120]
[420840405,1776616451662,151.0,0.00032877,120]
[420840406,1776616458480,151.0,0.00032877,120]
[420840407,1776616465340,151.0,0.00032877,120]
[420840408,1776616471976,151.0,0.00032877,120]
[420840409,1776616473123,1009.52,0.00032877,120]
[420840410,1776616479051,151.0,0.00032877,120]
[420840411,1776616486911,151.0,0.00032877,120]
[420840412,1776616496790,151.0,0.00032877,120]
[420840413,1776616505119,151.0,0.00032877,120]
[420840414,1776616582795,260.0,9.863e-05,2]
[420840415,1776616678646,300.0,0.00032877,120]
[420840416,1776616740442,500.0,0.0003287,120]
[420840417,1776616749072,500.0,0.0003287,120]
[420840418,1776616749573,500.0,0.0003287,120]
[420840419,1776616749941,500.0,0.0003287,120]
[420840420,1776616750327,500.0,0.0003287,120]
[420840421,1776616750702,500.0,0.0003287,120]
[420840422,1776616751114,500.0,0.0003287,120]
[420840423,1776616751557,500.0,0.0003287,120]
[420840424,1776616751942,500.0,0.0003287,120]
[420840425,1776616752410,500.0,0.0003287,120]
[420840426,1776616752781,500.0,0.0003287,120]
[420840427,1776616753280,500.0,0.0003287,120]
[420840428,1776616753663,500.0,0.0003287,120]
[420840429,1776616754059,500.0,0.0003287,120]
[420840430,1776616754538,500.0,0.0003287,120]
[420840431,1776616754924,500.0,0.0003287,120]
[420840432,1776616755817,500.0,0.0003287,120]
[420840433,1776616756282,500.0,0.0003287,120]
[420840434,1776616756743,500.0,0.0003287,120]
[420840435,1776616757121,500.0,0.0003287,120]
[420840436,1776616757580,500.0,0.0003287,120]
[420840437,1776616757965,500.0,0.0003287,120]
[420840438,1776616761159,500.0,0.0003287,120]
[420840439,1776616761188,500.0,0.0003287,120]
[420840440,1776616761223,500.0,0.0003287,120]
[420840441,1776616761253,500.0,0.0003287,120]
[420840442,1776616761287,500.0,0.0003287,120]
[420840443,1776616761326,500.0,0.0003287,120]